[Event "Torneo Interdepartamental 2020"]
[Site "Punta del Este"]
[Date "2020.10.31"]
[Round "2.11"]
[White "Gatti, Santiago"]
[Black "Pinero, Ismael"]
[Result "0-1"]
[ECO "A48"]
[WhiteElo "1691"]
[BlackElo "1882"]
[Annotator "NA RC"]
[PlyCount "82"]
[EventDate "2020.10.31"]
[EventType "team-tourn"]
[EventCountry "URU"]
[SourceTitle "playchess.com"]
[Source "ChessBase"]
[SourceQuality "1"]
[TimeControl "3600+30"]

{[%evp 11,82,24,80,35,57,27,15,33,43,49,26,39,31,27,35,19,39,28,65,51,85,0,185,193,198,10,0,0,0,0,4,0,0,-13,0,0,-6,0,32767,32767,32767,-96,0,-6,0,0,0,-174,0,-8,0,-70,-14,-28,32767,-41,-20,-49,-26,-127,-34,-177,-206,-353,-459,-428,-402,-375,-396,-420,-343,-596,-740]} 1. d4 {[%emt 0:00:00]} Nf6 {[%emt 0:00:00]} 2. Nf3 {[%emt 0:00:00]} g6 {[%emt 0:00:23]} 3. Bf4 {[%emt 0:00:37]} Bg7 {[%emt 0:00:02]} 4. Nc3 {[%emt 0:02:28]} d6 {[%emt 0:00:30]} 5. e4 {[%emt 0:01:32]} O-O {[%emt 0:00:03]} 6. Be2 {[%emt 0:01:26]} Nfd7 {[%emt 0:00:47] B08: Pirc Defence: Classical System.} (6... Nbd7 $11) 7. O-O {[%emt 0:06:02]} Nc6 {[%emt 0:01:57] [#]} 8. h3 $146 {[%emt 0:08:15]} ({Predecessor:} 8. Bb5 a6 9. Bxc6 bxc6 10. Re1 c5 11. dxc5 Nxc5 12. Qd2 Rb8 13. Rab1 Bb7 14. Qe3 Ne6 {0-1 (45) Golecka,J (1067)-Mielczarek,J (1562) Szczyrk 2014}) 8... Nxd4 {[%emt 0:08:38]} 9. Nxd4 {[%emt 0:02:19]} e5 {[%emt 0:00:10]} 10. Be3 {[%emt 0:00:25]} exd4 {[%emt 0:00:18]} 11. Bxd4 {[%emt 0:00:07]} Nf6 {[%emt 0:00:45]} 12. Bf3 {[%emt 0:09:22]} Re8 {[%emt 0:04:02]} 13. Re1 {[%emt 0:00:55]} c6 {[%emt 0:01:20]} 14. Qd2 {[%emt 0:07:09]} Be6 {[%emt 0:02:50]} 15. Rad1 {[%emt 0:00:33]} Qe7 {[%emt 0:06:02]} 16. e5 {[%emt 0:03:59]} ({Better is} 16. Nd5 $16 Nxd5 17. exd5 cxd5 18. Bxd5) 16... Nd7 $2 {[%emt 0:04:40]} (16... dxe5 $11 17. Bxe5 Rad8) 17. exd6 {[%emt 0:01:08]} Qxd6 {[%emt 0:00:03]} 18. Ne4 $2 {[%emt 0:04:09]} (18. Bxg7 $18 Qxd2 19. Rxd2 Kxg7 {[#]} 20. Rxe6 $1 {[%mdl 576] Remove Defender} Rxe6 21. Rxd7) 18... Qxd4 {[%emt 0:01:36]} 19. Qxd4 {[%emt 0:00:20]} Bxd4 {[%emt 0:00:02]} 20. Rxd4 {[%emt 0:00:10]} Bd5 {[%emt 0:02:49]} 21. c4 {[%emt 0:01:24]} Bxe4 $1 {[%emt 0:00:17]} 22. Rdxe4 {[%emt 0:00:13]} Kf8 {[%emt 0:02:29]} 23. Rxe8+ {[%emt 0:03:26]} Rxe8 {[%emt 0:00:13]} 24. Rxe8+ {[%emt 0:00:01]} Kxe8 {[%emt 0:00:02]} 25. b4 {[%emt 0:02:07]} Ke7 {[%emt 0:00:09]} 26. Kf1 {[%emt 0:08:05]} ({Better is} 26. Be2 $15) 26... Ne5 (26... Ke6 $17) 27. Be2 Kd6 {[%emt 0:05:26]} 28. Ke1 {[%emt 0:00:31]} c5 {[%emt 0:00:58]} 29. a3 $2 {[%emt 0:00:24]} (29. b5 $11 {and White has nothing to worry.}) 29... b6 $2 {[%emt 0:00:53]} (29... cxb4 $19 30. axb4 Nc6) 30. Kd2 {[%emt 0:00:19]} Nc6 {[%emt 0:01:37]} 31. Kc3 {[%emt 0:00:51]} ({White should play} 31. b5 $11 Nd4 32. Bd3) 31... Nd4 {[%emt 0:02:20]} 32. Bd1 {[%emt 0:02:15]} Ke5 {[%emt 0:00:45]} 33. bxc5 {[%emt 0:01:08]} bxc5 {[%emt 0:00:04]} 34. Kd3 $1 {[%emt 0:00:36]} f5 {[%emt 0:00:35]} 35. Ke3 {[%emt 0:01:45] [#]} ({White should play} 35. g3 $15) 35... g5 {[%emt 0:00:56]} ({Better is} 35... f4+ $1 $17 36. Kd3 h5) 36. f3 {[%emt 0:01:55]} ({Better is} 36. Kd3 $15) 36... f4+ {[%emt 0:01:29]} 37. Kf2 {[%emt 0:01:49]} (37. Kd3 {might work better.}) 37... h6 {[%emt 0:00:24]} 38. g3 {[%emt 0:00:42]} Ne6 {[%emt 0:00:16]} 39. gxf4+ {[%emt 0:00:30]} Nxf4 {[%emt 0:00:23]} 40. Kg3 Kd4 41. h4 $19 Kxc4 0-1

[Event "Torneo Interdepartamental 2020"]
[Site "Punta del Este"]
[Date "2020.10.31"]
[Round "2.12"]
[White "Barboza, Mauro"]
[Black "Delbono, Ruben"]
[Result "1-0"]
[ECO "B92"]
[WhiteElo "1874"]
[BlackElo "1573"]
[Annotator "NA RC"]
[PlyCount "55"]
[EventDate "2020.10.31"]
[EventType "team-tourn"]
[EventCountry "URU"]
[SourceTitle "playchess.com"]
[Source "ChessBase"]
[SourceQuality "1"]
[TimeControl "3600+30"]

{[%evp 8,55,23,24,29,12,32,42,61,36,27,20,16,40,26,37,37,-6,30,33,119,116,469,481,606,613,631,675,671,643,613,0,690,681,645,683,748,802,777,589,716,660,703,706,660,718,718,622,622,645]} 1. e4 {[%emt 0:08:18]} c5 {[%emt 0:00:00]} 2. Nf3 {[%emt 0:00:10]} d6 {[%emt 0:00:13]} 3. d4 {[%emt 0:00:07]} cxd4 {[%emt 0:00:25]} 4. Nxd4 {[%emt 0:00:16]} Nf6 {[%emt 0:00:26]} 5. Nc3 {[%emt 0:00:53]} a6 {[%emt 0:01:12]} 6. Be2 {[%emt 0:00:22]} Nc6 {[%emt 0:00:43]} 7. Be3 {[%emt 0:00:07]} g6 {[%emt 0:00:40]} 8. O-O {[%emt 0:01:35]} Bg7 {[%emt 0:00:31]} 9. h3 {[%emt 0:00:51]} O-O {[%emt 0:00:31]} 10. Qd2 {[%emt 0:00:54]} Re8 {[%emt 0:00:52] B73: Sicilian Dragon: Classical System without 9 Nb3.} 11. Rad1 {[%emt 0:00:12]} Bd7 {[%emt 0:01:22]} 12. Nb3 {[%emt 0:00:46]} Rc8 {[%emt 0:01:28]} 13. f4 {[%emt 0:01:11] [#]} Na5 $146 {[%emt 0:02:18]} ({Black should try} 13... b5 $14) ({Predecessor:} 13... Be6 14. f5 {½-½ (14) Albrecht,J (2140)-Bodach,H (2183) Dresden 2017}) 14. e5 {[%emt 0:01:57]} Rxc3 $4 {[%emt 0:04:37]} (14... Nh5 $16) 15. Qxc3 {[%emt 0:05:41]} ({Less strong is} 15. bxc3 Ne4 $16) 15... Ne4 {[%emt 0:00:33]} 16. Qxa5 {[%emt 0:00:17]} Ng3 {[%emt 0:03:24]} 17. Qxd8 Rxd8 $11 18. Rf2 {[%emt 0:11:01]} (18. Rfe1 Nxe2+ 19. Rxe2 Bb5) 18... Ne4 {[%emt 0:03:06]} 19. Rff1 $2 {[%emt 0:00:53]} (19. Rf3 $18) 19... Bc6 $2 {[%emt 0:00:12]} 20. Bf3 {[%emt 0:03:38]} Ng3 {[%emt 0:02:54]} 21. Rf2 {[%emt 0:00:55]} Nf5 {[%emt 0:00:28]} 22. Bb6 {[%emt 0:00:35]} Rc8 {[%emt 0:00:15]} 23. Bg4 {[%emt 0:01:22]} Be4 {[%emt 0:02:19]} 24. Bxf5 {[%emt 0:00:28]} Bxf5 {[%emt 0:00:24]} 25. exd6 {[%emt 0:00:10]} exd6 {[%emt 0:00:56]} 26. Rxd6 {[%emt 0:00:13]} Bxb2 {[%emt 0:00:51]} 27. Rd8+ {[%emt 0:00:13]} Rxd8 $18 {[%emt 0:01:02]} 28. Bxd8 {[%emt 0:00:09]} 1-0

[Event "Torneo Interdepartamental 2020"]
[Site "Punta del Este"]
[Date "2020.11.01"]
[Round "3.3"]
[White "Manteiga, Franco"]
[Black "Taran, Ignacio"]
[Result "1-0"]
[ECO "D35"]
[WhiteElo "1832"]
[BlackElo "1676"]
[Annotator "NA RC"]
[PlyCount "82"]
[EventDate "2020.10.31"]
[EventType "team-tourn"]
[EventCountry "URU"]
[SourceTitle "playchess.com"]
[Source "ChessBase"]
[SourceQuality "1"]
[TimeControl "3600+30"]

1. d4 {[%emt 0:00:00]} Nf6 {[%emt 0:00:00]} 2. c4 {[%emt 0:00:00]} e6 {[%emt 0:00:00]} 3. Nc3 {[%emt 0:00:00]} d5 {[%emt 0:00:04]} 4. cxd5 {[%emt 0:00:00]} exd5 {[%emt 0:00:10]} 5. Bg5 {[%emt 0:00:09]} Be7 {[%emt 0:00:14]} 6. e3 {[%emt 0:00:13]} Bf5 {[%emt 0:00:43]} 7. Bxf6 {[%emt 0:08:59]} Bxf6 {[%emt 0:00:24]} 8. Qb3 {[%emt 0:00:07]} Nd7 {[%emt 0:03:38] D35: Queen's Gambit Declined: Exchange Variation.} 9. Nxd5 {[%emt 0:02:47] [#]} c6 $146 {[%emt 0:03:15]} ({Predecessor:} 9... O-O 10. Nxf6+ Nxf6 11. Nf3 c5 12. Be2 cxd4 13. Nxd4 Qa5+ 14. Qc3 Qxc3+ 15. bxc3 Bg6 16. O-O {1-0 (77) Homa,S (2274)-Brooks,M (2430) Saint Louis 2012}) 10. Nxf6+ {[%emt 0:01:51]} Qxf6 {[%emt 0:00:17]} 11. Nf3 {[%emt 0:04:52]} O-O {[%emt 0:00:11]} 12. Be2 {[%emt 0:01:29]} Be4 {[%emt 0:01:21]} (12... Qe7 $16 13. O-O (13. Qxb7 Rab8 $16) 13... Nb6) 13. O-O {[%emt 0:03:22]} ({White should try} 13. Qxb7 $18 Qd6 14. Qb3) 13... Nb6 {[%emt 0:00:07]} 14. Rac1 {[%emt 0:04:47]} Rfd8 {[%emt 0:03:36]} 15. Rc5 {[%emt 0:03:08]} Bd5 {[%emt 0:01:32]} 16. Qc2 {[%emt 0:01:32]} Re8 {[%emt 0:03:34]} 17. Bd3 {[%emt 0:11:55]} Nd7 {[%emt 0:07:02]} 18. Rc3 {[%emt 0:02:18]} Bxf3 {[%emt 0:17:38]} 19. gxf3 {[%emt 0:00:04]} h6 {[%emt 0:00:52]} 20. f4 {[%emt 0:10:10]} Qh4 {[%emt 0:04:15]} 21. Qe2 {[%emt 0:00:06]} Nf6 {[%emt 0:00:39] [#]} 22. Qf3 $1 {[%emt 0:01:09]} Rad8 {[%emt 0:03:01]} 23. Qg3 {[%emt 0:04:55]} Qxg3+ {[%emt 0:01:58]} 24. hxg3 {[%emt 0:00:27]} Re7 {[%emt 0:05:46]} 25. Kg2 $18 {[%emt 0:00:46]} Rd6 {[%emt 0:04:03]} 26. Kf3 {[%emt 0:01:12]} Nd7 {[%emt 0:00:23]} 27. b4 {[%emt 0:02:09]} g6 {[%emt 0:00:34]} 28. Rfc1 {[%emt 0:00:52]} Nb6 {[%emt 0:00:31]} 29. R3c2 {[%emt 0:01:57]} Kg7 {[%emt 0:00:59]} 30. Rb1 {[%emt 0:01:32]} a6 {[%emt 0:00:08]} 31. Bc4 {[%emt 0:00:29]} Na8 {[%emt 0:02:21]} 32. a4 {[%emt 0:00:29]} Nc7 {[%emt 0:00:05]} 33. Rbc1 {[%emt 0:01:28]} Nd5 {[%emt 0:04:18]} 34. Bxd5 {[%emt 0:00:12]} Rxd5 {[%emt 0:00:37]} 35. Rc5 {[%emt 0:00:20]} Red7 {[%emt 0:00:33]} 36. Ke2 {[%emt 0:01:09]} f5 {[%emt 0:00:35]} 37. Rxd5 {[%emt 0:00:41]} Rxd5 {[%emt 0:00:09]} 38. Rc5 {[%emt 0:00:03]} Kf6 {[%emt 0:00:48]} 39. Rxd5 {[%emt 0:01:02]} cxd5 {[%emt 0:00:10]} 40. f3 {[%emt 0:00:14]} Ke6 {[%emt 0:00:42]} 41. Kd3 {[%emt 0:00:33]} h5 {[%emt 0:00:51]} 1-0

[Event "Torneo Interdepartamental 2020"]
[Site "Punta del Este"]
[Date "2020.11.01"]
[Round "3.4"]
[White "Genta, Alejandro"]
[Black "Caitano, Martin Joel"]
[Result "1/2-1/2"]
[ECO "A41"]
[WhiteElo "2003"]
[BlackElo "2086"]
[Annotator "ChessBase"]
[PlyCount "57"]
[EventDate "2020.10.31"]
[EventType "team-tourn"]
[EventCountry "URU"]
[SourceTitle "playchess.com"]
[Source "ChessBase"]
[SourceQuality "1"]
[TimeControl "3600+30"]

1. d4 {[%emt 0:00:00]} d6 {[%emt 0:00:00]} 2. c4 {[%emt 0:00:00]} Nd7 {[%emt 0:00:00]} 3. e4 {[%emt 0:00:52]} e5 {[%emt 0:00:11]} 4. Nf3 {[%emt 0:04:15]} g6 {[%emt 0:00:33]} 5. Nc3 {[%emt 0:00:21]} Bg7 {[%emt 0:00:11]} 6. Be2 {[%emt 0:05:35]} Ne7 {[%emt 0:02:34]} 7. O-O {[%emt 0:00:33]} O-O {[%emt 0:01:31]} 8. Re1 {[%emt 0:13:38]} h6 {[%emt 0:09:45]} 9. dxe5 {[%emt 0:04:20]} Nxe5 {[%emt 0:13:38]} 10. Nxe5 {[%emt 0:01:56]} dxe5 {[%emt 0:00:25]} 11. Qxd8 {[%emt 0:11:02]} Rxd8 {[%emt 0:00:05]} 12. Nd5 {[%emt 0:00:03]} Nxd5 {[%emt 0:01:35]} 13. cxd5 {[%emt 0:00:26]} Bd7 {[%emt 0:03:20]} 14. Be3 {[%emt 0:01:36]} c6 {[%emt 0:02:07]} 15. Bc4 {[%emt 0:00:34]} Bf8 {[%emt 0:04:07]} 16. dxc6 {[%emt 0:09:43]} Bxc6 {[%emt 0:00:20]} 17. f3 {[%emt 0:00:02]} Kg7 {[%emt 0:05:00]} 18. Red1 {[%emt 0:00:05]} Be7 {[%emt 0:13:51]} 19. Rxd8 {[%emt 0:00:52]} Bxd8 {[%emt 0:00:48]} 20. b4 {[%emt 0:03:47]} a6 {[%emt 0:06:20]} 21. a4 {[%emt 0:06:38]} Be7 {[%emt 0:01:52]} 22. Bd2 {[%emt 0:00:06]} Rc8 {[%emt 0:01:04]} 23. Be2 {[%emt 0:00:50]} Bxa4 {[%emt 0:01:28]} 24. Bxa6 {[%emt 0:00:02]} bxa6 {[%emt 0:00:38]} 25. Rxa4 {[%emt 0:00:33]} Rc2 {[%emt 0:00:31]} 26. Be3 {[%emt 0:00:24]} Rc4 {[%emt 0:00:31]} 27. Rxa6 {[%emt 0:01:50]} Rxb4 28. Ra3 Ra4 29. Rxa4 1/2-1/2

[Event "Torneo Interdepartamental 2020"]
[Site "Punta del Este"]
[Date "2020.11.01"]
[Round "3.6"]
[White "Barboza, Mauro"]
[Black "Vaz Lacuesta, Leonardo"]
[Result "0-1"]
[ECO "B40"]
[WhiteElo "1874"]
[BlackElo "2085"]
[Annotator "ChessBase"]
[PlyCount "66"]
[EventDate "2020.10.31"]
[EventType "team-tourn"]
[EventCountry "URU"]
[SourceTitle "playchess.com"]
[Source "ChessBase"]
[SourceQuality "1"]
[TimeControl "3600+30"]

1. e4 {[%emt 0:01:17]} c5 {[%emt 0:01:21]} 2. Nf3 {[%emt 0:00:24]} e6 {[%emt 0:00:28]} 3. d4 {[%emt 0:02:20]} cxd4 {[%emt 0:00:05]} 4. Nxd4 {[%emt 0:00:18]} Nf6 {[%emt 0:01:03]} 5. Nc3 {[%emt 0:00:22]} Bb4 {[%emt 0:00:45]} 6. Bd3 {[%emt 0:00:48]} a6 {[%emt 0:01:58]} 7. O-O {[%emt 0:00:21]} Qc7 {[%emt 0:00:38]} 8. Nde2 {[%emt 0:01:08]} Nc6 {[%emt 0:01:28]} 9. Bf4 {[%emt 0:01:21]} Bd6 {[%emt 0:02:56]} 10. Bxd6 {[%emt 0:05:13]} Qxd6 {[%emt 0:00:15]} 11. h3 {[%emt 0:00:14]} b5 {[%emt 0:01:40]} 12. a3 {[%emt 0:00:42]} O-O {[%emt 0:05:48]} 13. f4 {[%emt 0:01:17]} Qc5+ {[%emt 0:00:14]} 14. Kh1 {[%emt 0:00:20]} d6 {[%emt 0:03:16]} 15. Ng3 {[%emt 0:09:14]} Ne7 {[%emt 0:04:59]} 16. e5 {[%emt 0:04:35]} dxe5 {[%emt 0:08:13]} 17. Nce4 {[%emt 0:00:34]} Nxe4 {[%emt 0:00:26]} 18. Bxe4 {[%emt 0:00:08]} Rb8 {[%emt 0:03:25]} 19. fxe5 {[%emt 0:07:39]} Qxe5 {[%emt 0:00:57]} 20. Qf3 {[%emt 0:00:20]} f5 {[%emt 0:01:53]} 21. c3 {[%emt 0:02:11]} Qf6 {[%emt 0:00:24]} 22. Qd3 {[%emt 0:13:20]} Bb7 {[%emt 0:08:01]} 23. Bxb7 {[%emt 0:00:53]} Rxb7 {[%emt 0:00:12]} 24. Qd6 {[%emt 0:00:47]} e5 {[%emt 0:00:44]} 25. Qd2 {[%emt 0:08:25]} Qg6 {[%emt 0:05:23]} 26. Kh2 {[%emt 0:00:44]} f4 {[%emt 0:00:52]} 27. Ne2 {[%emt 0:00:36]} Rb6 {[%emt 0:00:37]} 28. Rad1 {[%emt 0:02:18]} Re6 {[%emt 0:00:40]} 29. Qd7 {[%emt 0:00:58]} Nf5 {[%emt 0:00:16]} 30. Rf3 {[%emt 0:03:07]} Ne3 {[%emt 0:00:40]} 31. Rg1 {[%emt 0:00:27]} Rd6 {[%emt 0:00:59]} 32. Qe7 {[%emt 0:01:30]} Rd2 {[%emt 0:00:18]} 33. Rf2 {[%emt 0:00:30]} Ng4+ 0-1

[Event "Torneo Interdepartamental 2020"]
[Site "Punta del Este"]
[Date "2020.11.01"]
[Round "3.8"]
[White "Pena Canapa, Alfredo"]
[Black "Chamlian, Aram"]
[Result "1-0"]
[ECO "B31"]
[WhiteElo "1810"]
[BlackElo "1710"]
[Annotator "NA RC"]
[PlyCount "89"]
[EventDate "2020.10.31"]
[EventType "team-tourn"]
[EventCountry "URU"]
[SourceTitle "playchess.com"]
[Source "ChessBase"]
[SourceQuality "1"]
[TimeControl "3600+30"]

1. e4 {[%emt 0:00:00]} c5 {[%emt 0:06:36]} 2. Nf3 {[%emt 0:00:00]} Nc6 {[%emt 0:00:32]} 3. Bb5 {[%emt 0:00:00]} g6 {[%emt 0:00:36]} 4. Bxc6 {[%emt 0:00:19]} bxc6 {[%emt 0:00:35]} 5. O-O {[%emt 0:00:12]} Bg7 {[%emt 0:00:38]} 6. Re1 {[%emt 0:00:25]} e5 {[%emt 0:00:31]} 7. c3 {[%emt 0:00:35]} Ne7 {[%emt 0:00:56]} 8. d4 {[%emt 0:00:33]} cxd4 {[%emt 0:01:44]} 9. cxd4 {[%emt 0:00:11]} exd4 {[%emt 0:00:15]} 10. Nxd4 {[%emt 0:00:13]} O-O {[%emt 0:00:20]} 11. Nc3 {[%emt 0:00:42]} Qb6 {[%emt 0:05:17]} 12. Nb3 {[%emt 0:00:39] [#]} h6 $146 {[%emt 0:05:39] B31: Sicilian: 2...Nc6 3 Bb5 g6.} ({Black should try} 12... Be5) ({Predecessor:} 12... Qc7 13. Bg5 d6 14. Rc1 Rb8 15. Qd2 Ba6 16. Red1 Nc8 17. Nd5 Qb7 18. Nf6+ Kh8 19. e5 Ne7 20. exd6 Nd5 21. Nc5 Qxb2 22. Qxb2 Rxb2 23. Nxd5 Be2 {1-0 (23) Luukkonen,T (2284)-Rantanen,Y (2309) Finland 2019}) 13. Be3 {[%emt 0:00:51]} Qc7 {[%emt 0:03:25]} 14. Qd2 {[%emt 0:07:40]} Kh7 {[%emt 0:00:17]} 15. Rad1 {[%emt 0:01:02]} d5 {[%emt 0:06:19]} 16. Bc5 {[%emt 0:13:50]} dxe4 {[%emt 0:08:18]} 17. Nxe4 {[%emt 0:03:37]} Be6 {[%emt 0:02:49]} 18. Bd6 {[%emt 0:01:51]} Qd8 {[%emt 0:04:50]} 19. Nec5 {[%emt 0:02:39]} Re8 {[%emt 0:03:20]} 20. Nxe6 {[%emt 0:03:41]} fxe6 {[%emt 0:00:11]} 21. Rxe6 {[%emt 0:00:46]} Nf5 {[%emt 0:01:03]} 22. Rxe8 {[%emt 0:01:24]} Qxe8 {[%emt 0:00:23]} 23. Bb4 {[%emt 0:02:09]} Qe6 {[%emt 0:02:01]} 24. Bc3 {[%emt 0:00:42]} Bxc3 {[%emt 0:00:47]} 25. Qxc3 {[%emt 0:00:50]} Re8 {[%emt 0:00:20]} 26. h3 {[%emt 0:02:32]} Re7 {[%emt 0:01:14]} 27. Rc1 {[%emt 0:06:05]} Qe2 {[%emt 0:00:36]} 28. Qc2 {[%emt 0:02:59]} ({Much less strong is} 28. Qxc6 $6 Qxb2 29. Qd5 h5 $16) ({Better is} 28. Nd4 $18 Nxd4 29. Qxd4) 28... Qe5 {[%emt 0:00:33]} 29. Qd2 {[%emt 0:01:56]} Qe6 {[%emt 0:00:58]} 30. Kf1 {[%emt 0:01:01]} Rd7 {[%emt 0:01:35]} 31. Qe2 {[%emt 0:00:50]} Qd6 {[%emt 0:00:48] [#]} 32. Qc2 $2 {[%emt 0:01:51]} (32. Kg1 $1 $16 {is necessary to keep the advantage.}) 32... Qh2 {[%emt 0:01:14]} 33. Qxc6 {[%emt 0:04:45]} Re7 {[%emt 0:00:47]} 34. g4 {[%emt 0:01:52]} Nh4 {[%emt 0:03:05]} 35. Rc3 {[%emt 0:01:48]} Qe5 {[%emt 0:00:54]} 36. Re3 {[%emt 0:00:28]} Qg5 $18 {[%emt 0:02:21]} 37. Rxe7+ {[%emt 0:00:28]} Qxe7 {[%emt 0:00:13]} 38. Nc5 {[%emt 0:01:52]} Qf8 {[%emt 0:03:51]} 39. Qd7+ {[%emt 0:02:44]} Kh8 {[%emt 0:00:42]} 40. Ne6 {[%emt 0:00:54]} Qg8 {[%emt 0:00:21]} 41. Qd4+ {[%emt 0:00:55]} Kh7 {[%emt 0:00:26]} 42. Qxa7+ {[%emt 0:00:10]} Kh8 {[%emt 0:00:08]} 43. Qd4+ {[%emt 0:00:11]} Kh7 {[%emt 0:00:17]} 44. Qf6 {[%emt 0:01:25]} g5 {[%emt 0:00:44]} 45. Nf8+ {[%emt 0:00:13]} 1-0

[Event "Torneo Interdepartamental 2020"]
[Site "Punta del Este"]
[Date "2020.11.01"]
[Round "3.9"]
[White "Zecharies, Alexis"]
[Black "Campora, Edgardo"]
[Result "1-0"]
[ECO "B09"]
[WhiteElo "1823"]
[BlackElo "1663"]
[Annotator "NA RC"]
[PlyCount "85"]
[EventDate "2020.10.31"]
[EventType "team-tourn"]
[EventCountry "URU"]
[TimeControl "3600+30"]

1. d4 {[%emt 0:00:00]} Nf6 {[%emt 0:00:00]} 2. Nc3 {[%emt 0:00:24]} g6 {[%emt 0:00:27]} 3. e4 {[%emt 0:02:08]} d6 {[%emt 0:00:28]} 4. f4 {[%emt 0:00:49]} Bg7 {[%emt 0:01:06]} 5. Nf3 {[%emt 0:00:52]} O-O {[%emt 0:01:18]} 6. Bc4 {[%emt 0:00:48]} a6 {[%emt 0:03:31]} 7. a4 {[%emt 0:02:22]} e6 {[%emt 0:03:35]} 8. Ba2 {[%emt 0:08:38]} b6 {[%emt 0:00:53]} 9. O-O {[%emt 0:01:06]} Bb7 {[%emt 0:00:21]} 10. e5 {[%emt 0:06:59]} Nfd7 {[%emt 0:08:14]} 11. Ng5 {[%emt 0:07:30]} d5 {[%emt 0:10:34]} 12. b4 {[%emt 0:00:57]} c5 {[%emt 0:03:38]} 13. bxc5 {[%emt 0:01:17]} bxc5 {[%emt 0:00:24]} 14. Rb1 {[%emt 0:09:02]} cxd4 {[%emt 0:09:23]} 15. Ne2 {[%emt 0:01:00]} Bc6 {[%emt 0:03:33]} 16. Nxd4 {[%emt 0:01:59]} Re8 {[%emt 0:01:57]} 17. c4 {[%emt 0:06:55]} dxc4 {[%emt 0:08:16]} 18. Bxc4 {[%emt 0:04:52]} Qc7 {[%emt 0:03:30]} 19. Ndxe6 {[%emt 0:02:08]} fxe6 {[%emt 0:00:57]} 20. Nxe6 {[%emt 0:00:04]} Qa7+ {[%emt 0:00:37]} 21. Kh1 {[%emt 0:02:42]} Kh8 {[%emt 0:02:06]} 22. Qe2 {[%emt 0:01:57]} Nf8 {[%emt 0:00:53]} 23. Ng5 {[%emt 0:01:28]} Qe7 {[%emt 0:01:13]} 24. Nf7+ {[%emt 0:00:41]} Kg8 {[%emt 0:00:14]} 25. Nd6+ {[%emt 0:00:45]} Kh8 {[%emt 0:02:49]} 26. Ba3 {[%emt 0:00:02]} Qa7 27. Nxe8 {[%emt 0:02:43]} Bxe8 {[%emt 0:01:55]} 28. Bd5 Nc6 {[%emt 0:00:27]} 29. Qe4 {[%emt 0:00:13]} Rc8 {[%emt 0:00:10]} 30. Rfc1 {[%emt 0:00:14]} Ne7 {[%emt 0:01:18]} 31. Bxe7 {[%emt 0:00:20]} Rxc1+ {[%emt 0:00:06]} 32. Rxc1 {[%emt 0:00:02]} Qxe7 {[%emt 0:00:07]} 33. Qc4 {[%emt 0:00:47]} Qa3 {[%emt 0:01:27]} 34. h3 {[%emt 0:02:31]} Bxa4 {[%emt 0:00:46]} 35. Re1 {[%emt 0:01:00]} Bb5 {[%emt 0:00:07]} 36. Qc7 {[%emt 0:00:33]} Be8 {[%emt 0:00:58]} 37. Qd8 {[%emt 0:00:48]} Qg3 {[%emt 0:00:36]} 38. Rf1 {[%emt 0:00:27]} Bb5 {[%emt 0:00:21]} 39. Rf3 {[%emt 0:00:43]} Qe1+ {[%emt 0:00:02]} 40. Kh2 {[%emt 0:00:08]} h5 {[%emt 0:00:14]} 41. e6 {[%emt 0:00:29]} Kh7 {[%emt 0:00:24]} 42. e7 {[%emt 0:00:19]} Ne6 {[%emt 0:00:11]} 43. e8=Q 1-0

[Event "Torneo Interdepartamental 2020"]
[Site "Punta del Este"]
[Date "2020.11.01"]
[Round "3.11"]
[White "Casas, Nicolas"]
[Black "Chinelli, Gabriel"]
[Result "1-0"]
[ECO "D02"]
[WhiteElo "1812"]
[BlackElo "1697"]
[Annotator "NA"]
[PlyCount "63"]
[EventDate "2020.10.31"]
[EventType "team-tourn"]
[EventCountry "URU"]
[SourceTitle "playchess.com"]
[Source "ChessBase"]
[SourceQuality "1"]
[TimeControl "3600+30"]

{[%evp 8,63,12,11,15,11,18,12,17,25,16,14,33,23,48,30,78,69,76,49,32767,32767,32767,32767,32767,32767,32767,32767,32767,32767,32767,32767,32767,32767,32767,32767,32767,32767,32767,32767,32767,32767,32767,32767,32767,32767,32767,32767,32767,32767,32767,0,162,164,874,1037,29998,29999]} 1. d4 {[%emt 0:00:00]} d5 {[%emt 0:00:00]} 2. Nf3 {[%emt 0:00:00]} Bf5 {[%emt 0:00:06]} 3. Bf4 {[%emt 0:00:04]} Nf6 {[%emt 0:01:12]} 4. e3 {[%emt 0:00:14]} e6 {[%emt 0:00:20]} 5. Bd3 {[%emt 0:00:15]} Bb4+ {[%emt 0:02:16]} 6. c3 {[%emt 0:00:13] D02: 1 d4 d5 2 Nf3 sidelines, including 2...Nf6 3 g3 and 2...Nf6 3 Bf4.} Bxd3 {[%emt 0:04:30]} 7. Qxd3 {[%emt 0:00:06]} Bd6 {[%emt 0:02:17]} 8. Qb5+ {[%emt 0:01:59]} Nbd7 {[%emt 0:01:54]} 9. Qxb7 {[%emt 0:02:30] [#]} Bxf4 $146 {[%emt 0:01:32]} ({Predecessor:} 9... Rb8 10. Qxa7 Rxb2 11. Nbd2 Nb6 12. Bxd6 Qxd6 13. Qb8+ Qd8 14. Qxd8+ Kxd8 15. O-O Ke7 {1-0 (31) Navratil,J (2163)-Kocur,A (1922) Czechia 2010}) 10. exf4 {[%emt 0:00:16]} O-O {[%emt 0:04:51]} 11. Qb3 {[%emt 0:03:10]} Qe7 {[%emt 0:04:24]} 12. O-O {[%emt 0:00:14]} Qd6 {[%emt 0:03:09]} 13. Ne5 {[%emt 0:00:26]} Rfb8 {[%emt 0:03:11]} 14. Qc2 {[%emt 0:00:19]} Qb6 {[%emt 0:03:39]} 15. b3 {[%emt 0:00:34]} a5 {[%emt 0:00:21]} 16. Nd2 {[%emt 0:00:33]} c5 {[%emt 0:03:02]} 17. Nxd7 {[%emt 0:02:20]} Nxd7 {[%emt 0:00:19]} 18. Nf3 {[%emt 0:02:23]} a4 {[%emt 0:05:24]} 19. bxa4 {[%emt 0:02:13]} Qa7 {[%emt 0:04:19]} 20. Rfb1 {[%emt 0:01:58]} Rc8 {[%emt 0:10:10]} 21. f5 {[%emt 0:04:02]} cxd4 {[%emt 0:01:48]} 22. fxe6 {[%emt 0:00:37]} fxe6 {[%emt 0:02:28]} 23. Qe2 {[%emt 0:01:24]} Qa6 {[%emt 0:01:19]} 24. Qxa6 {[%emt 0:06:29]} Rxa6 {[%emt 0:00:14]} 25. cxd4 {[%emt 0:00:06]} Rxa4 {[%emt 0:01:26]} 26. g3 {[%emt 0:00:40]} Rca8 {[%emt 0:01:09]} 27. Rb7 {[%emt 0:00:26]} Nf8 $11 {[%emt 0:03:06]} 28. Rb2 {[%emt 0:02:27]} Kf7 {[%emt 0:02:36]} 29. Rb7+ {[%emt 0:02:35]} (29. h4 $16) 29... Kf6 $2 {[%emt 0:00:41] [#]} 30. Ne5 $1 {[%emt 0:02:21]} Rxd4 $2 {[%emt 0:00:35]} (30... R8a7 31. Rxa7 Rxa7) 31. f4 {[%emt 0:00:09]} Kf5 {[%emt 0:01:46]} 32. Rf7+ {[%emt 0:00:06]} 1-0